[Event "FRA-ch Youth U14 2019"]
[Site "Hyeres"]
[Date "2019.04.19"]
[Round "7.2"]
[White "Meillon, Judicael"]
[Black "Papadiamandis, Elliot"]
[Result "0-1"]
[ECO "A06"]
[WhiteElo "1987"]
[BlackElo "2157"]
[Annotator "NA"]
[PlyCount "160"]
[EventDate "2019.04.14"]
[EventType "swiss"]
[EventCountry "FRA"]
[SourceTitle "playchess.com"]
[Source "ChessBase"]
[SourceQuality "1"]
[TimeControl "5400+30"]

1. e3 {[%emt 0:00:00]} Nf6 {[%emt 0:04:07]} 2. Nf3 {[%emt 0:01:28]} d5 {[%emt 0:02:01]} 3. b3 {[%emt 0:01:27]} e6 {[%emt 0:03:40]} 4. Bb2 {[%emt 0:02:09]} Be7 {[%emt 0:01:04]} 5. Be2 {[%emt 0:02:11]} Nbd7 {[%emt 0:01:02]} 6. O-O {[%emt 0:01:17]} O-O {[%emt 0:03:00]} 7. d3 {[%emt 0:02:26]} b6 {[%emt 0:00:56]} 8. Nbd2 {[%emt 0:02:29]} Bb7 {[%emt 0:00:49]} 9. h3 {[%emt 0:02:58]} c5 {[%emt 0:12:49]} 10. Nh2 {[%emt 0:04:34]} e5 {[%emt 0:06:31]} 11. c4 {[%emt 0:02:13]} Re8 {[%emt 0:07:36]} 12. Ng4 {[%emt 0:05:03]} Bf8 {[%emt 0:10:12]} 13. cxd5 {[%emt 0:11:19]} Nxd5 {[%emt 0:09:30]} 14. Bf3 {[%emt 0:04:38]} f5 {[%emt 0:06:46]} 15. Nh2 {[%emt 0:01:32]} N7f6 {[%emt 0:04:06]} 16. Re1 {[%emt 0:05:29]} Rb8 {[%emt 0:03:26]} 17. a3 {[%emt 0:02:58]} b5 {[%emt 0:02:25]} 18. Qc2 {[%emt 0:04:13]} Qd7 {[%emt 0:01:38]} 19. Rac1 {[%emt 0:01:42]} Nb6 {[%emt 0:01:51]} 20. Bxb7 {[%emt 0:01:15]} Qxb7 {[%emt 0:00:29]} 21. d4 {[%emt 0:03:37]} cxd4 {[%emt 0:01:31]} 22. Qxf5 {[%emt 0:03:18]} dxe3 {[%emt 0:00:49]} 23. Rxe3 {[%emt 0:01:03]} Qd7 {[%emt 0:00:15]} 24. Qxd7 {[%emt 0:01:14]} Nbxd7 {[%emt 0:00:23]} 25. Ne4 {[%emt 0:03:03]} Nxe4 {[%emt 0:02:22]} 26. Rxe4 {[%emt 0:00:22]} Rbc8 {[%emt 0:02:32]} 27. Rxc8 {[%emt 0:02:37]} Rxc8 {[%emt 0:00:01]} 28. Ng4 {[%emt 0:01:05]} Rc2 {[%emt 0:02:17]} 29. Bxe5 {[%emt 0:01:02]} Nxe5 {[%emt 0:00:37]} 30. Nxe5 {[%emt 0:00:14]} Bxa3 {[%emt 0:01:29]} 31. b4 {[%emt 0:04:53]} Bb2 {[%emt 0:00:59]} 32. g4 {[%emt 0:01:14]} a6 {[%emt 0:04:24]} 33. Nd3 {[%emt 0:01:41]} Bf6 {[%emt 0:00:50]} 34. Re6 {[%emt 0:01:22]} Rc3 {[%emt 0:01:25]} 35. Nf4 {[%emt 0:03:05]} Ra3 {[%emt 0:01:28]} 36. Kg2 {[%emt 0:00:30]} Ra2 {[%emt 0:00:30]} 37. Nd3 {[%emt 0:00:30]} Kf7 {[%emt 0:00:30]} 38. Nc5 {[%emt 0:00:30]} a5 {[%emt 0:00:30]} 39. bxa5 {[%emt 0:00:30]} Bd4 {[%emt 0:00:30]} 40. Rc6 {[%emt 0:00:30]} Rxf2+ {[%emt 0:00:30]} 41. Kg3 {[%emt 0:00:30]} Rc2 {[%emt 0:00:30]} 42. a6 {[%emt 0:00:30]} Bxc5 {[%emt 0:00:30]} 43. a7 {[%emt 0:00:30]} Bf2+ {[%emt 0:00:30]} 44. Kf3 {[%emt 0:00:30]} Ra2 {[%emt 0:00:30]} 45. Rc7+ {[%emt 0:00:30]} Kf6 {[%emt 0:00:30]} 46. a8=Q {[%emt 0:00:30]} Rxa8 {[%emt 0:00:30]} 47. Kxf2 {[%emt 0:00:30]} Rb8 {[%emt 0:00:30]} 48. Rc3 {[%emt 0:00:30]} b4 {[%emt 0:00:30]} 49. Rb3 {[%emt 0:00:30]} Ke5 {[%emt 0:00:30]} 50. Ke3 {[%emt 0:00:30]} Kd5 {[%emt 0:00:30]} 51. Kd3 {[%emt 0:00:30]} Kc5 {[%emt 0:00:30]} 52. Kc2 {[%emt 0:00:30]} Ra8 {[%emt 0:00:30]} 53. Rf3 {[%emt 0:00:30]} Ra2+ {[%emt 0:00:30]} 54. Kc1 {[%emt 0:00:30]} Ra7 {[%emt 0:00:30]} 55. Kc2 {[%emt 0:00:30]} Ra2+ {[%emt 0:00:30]} 56. Kc1 {[%emt 0:00:30]} Rh2 {[%emt 0:00:30]} 57. g5 {[%emt 0:00:30]} g6 {[%emt 0:00:30]} 58. Re3 {[%emt 0:00:30]} Kd4 {[%emt 0:00:30]} 59. Rg3 {[%emt 0:00:30]} Kc4 {[%emt 0:00:30]} 60. Rf3 {[%emt 0:00:30]} b3 {[%emt 0:00:30]} 61. Rf4+ {[%emt 0:00:30]} Kc3 {[%emt 0:00:00]} 62. Rf3+ {[%emt 0:00:05]} Kb4 {[%emt 0:00:21]} 63. Rf7 {[%emt 0:00:30]} Kc3 {[%emt 0:00:07]} 64. Rb7 Rxh3 {[%emt 0:00:00]} 65. Rc7+ {[%emt 0:00:26]} Kd4 {[%emt 0:00:19]} 66. Kb2 {[%emt 0:00:04]} Ke4 {[%emt 0:00:10]} 67. Rf7 {[%emt 0:00:08]} Ke5 {[%emt 0:00:31]} 68. Rf1 {[%emt 0:00:15]} Ke6 {[%emt 0:00:12]} 69. Rf2 {[%emt 0:00:15]} Rh5 {[%emt 0:00:26]} 70. Kxb3 {[%emt 0:00:05]} Rxg5 {[%emt 0:00:08]} 71. Kc3 {[%emt 0:00:05]} Rd5 {[%emt 0:00:18]} 72. Re2+ {[%emt 0:00:23]} Kf6 {[%emt 0:00:05]} 73. Rf2+ {[%emt 0:00:05]} Kg7 {[%emt 0:00:08]} 74. Kc4 {[%emt 0:00:11]} Rd1 {[%emt 0:00:04]} 75. Ra2 {[%emt 0:00:06]} h5 {[%emt 0:00:10]} 76. Ra7+ {[%emt 0:00:03]} Kh6 {[%emt 0:00:01]} 77. Ra8 {[%emt 0:00:09]} h4 {[%emt 0:00:14]} 78. Rb8 {[%emt 0:00:09]} g5 {[%emt 0:00:10]} 79. Rg8 {[%emt 0:00:06]} Kh5 {[%emt 0:00:05]} 80. Kc3 {[%emt 0:00:04]} h3 {[%emt 0:00:10]} 0-1

[Event "FRA-ch Youth U14 2019"]
[Site "Hyeres"]
[Date "2019.04.19"]
[Round "7.3"]
[White "Fardet, Elouan"]
[Black "Auroux, William"]
[Result "1-0"]
[ECO "B07"]
[WhiteElo "2001"]
[BlackElo "1983"]
[Annotator "NA"]
[PlyCount "101"]
[EventDate "2019.04.14"]
[EventType "swiss"]
[EventCountry "FRA"]
[SourceTitle "playchess.com"]
[Source "ChessBase"]
[SourceQuality "1"]
[TimeControl "5400+30"]

1. e4 {[%emt 0:00:00]} g6 {[%emt 0:00:00]} 2. d4 {[%emt 0:00:00]} Bg7 {[%emt 0:00:00]} 3. Nf3 {[%emt 0:00:03]} d6 {[%emt 0:00:12]} 4. c3 {[%emt 0:01:02]} Nf6 {[%emt 0:01:03]} 5. Bd3 {[%emt 0:00:13]} O-O {[%emt 0:00:23]} 6. O-O {[%emt 0:00:31]} Nbd7 {[%emt 0:02:11]} 7. Re1 {[%emt 0:04:28]} e5 {[%emt 0:01:31]} 8. Nbd2 {[%emt 0:00:32]} b6 {[%emt 0:03:13]} 9. Nf1 {[%emt 0:03:08]} Bb7 {[%emt 0:02:14]} 10. Ng3 {[%emt 0:01:08]} Re8 {[%emt 0:05:44]} 11. Bc2 {[%emt 0:02:05]} Qe7 {[%emt 0:03:48]} 12. a4 {[%emt 0:08:16]} a5 {[%emt 0:01:53]} 13. b3 {[%emt 0:04:13]} Red8 {[%emt 0:12:00]} 14. Ba3 {[%emt 0:03:28]} Qe8 {[%emt 0:01:20]} 15. d5 {[%emt 0:16:41]} Nf8 {[%emt 0:07:00]} 16. b4 {[%emt 0:04:51]} h5 {[%emt 0:11:45]} 17. bxa5 {[%emt 0:02:44]} Rxa5 {[%emt 0:01:13]} 18. Bb4 {[%emt 0:00:50]} Ra7 {[%emt 0:02:06]} 19. Qd2 {[%emt 0:03:57]} Rda8 {[%emt 0:02:12]} 20. Ra3 {[%emt 0:03:58]} N8d7 {[%emt 0:07:22]} 21. Rea1 {[%emt 0:02:14]} Qb8 {[%emt 0:09:53]} 22. c4 {[%emt 0:03:51]} Bf8 {[%emt 0:06:01]} 23. Ne2 {[%emt 0:03:05]} Ba6 {[%emt 0:01:40]} 24. Bd3 {[%emt 0:01:39]} Rb7 {[%emt 0:03:59]} 25. Nc3 {[%emt 0:04:12]} Rba7 {[%emt 0:04:05]} 26. Ne1 {[%emt 0:05:06]} Ne8 {[%emt 0:04:01]} 27. Nc2 {[%emt 0:00:45]} Nc5 {[%emt 0:01:56]} 28. Be2 {[%emt 0:01:54]} Be7 {[%emt 0:02:03]} 29. f4 {[%emt 0:12:01]} exf4 {[%emt 0:01:21]} 30. Nd4 {[%emt 0:00:13]} Bb7 {[%emt 0:00:54]} 31. Qxf4 {[%emt 0:00:36]} Bf6 {[%emt 0:00:52]} 32. Ndb5 {[%emt 0:00:49]} Ra6 {[%emt 0:00:29]} 33. a5 {[%emt 0:02:52]} bxa5 {[%emt 0:00:31]} 34. Bxc5 {[%emt 0:00:13]} dxc5 {[%emt 0:00:26]} 35. e5 {[%emt 0:00:07]} Bg7 {[%emt 0:01:08]} 36. Ne4 {[%emt 0:02:28]} c6 {[%emt 0:00:47]} 37. Nbd6 {[%emt 0:00:18]} Nxd6 {[%emt 0:00:21]} 38. Nxd6 {[%emt 0:00:06]} R6a7 {[%emt 0:00:48]} 39. Qxf7+ {[%emt 0:00:35]} Kh7 {[%emt 0:00:26]} 40. Rg3 {[%emt 0:00:22]} Ba6 {[%emt 0:00:24]} 41. Qxg6+ {[%emt 0:00:05]} Kg8 {[%emt 0:00:23]} 42. Rf1 {[%emt 0:01:15]} Qc7 {[%emt 0:00:43]} 43. Rf7 {[%emt 0:01:10]} Qxf7 {[%emt 0:00:19]} 44. Nxf7 {[%emt 0:00:10]} Rxf7 {[%emt 0:00:03]} 45. Bxh5 {[%emt 0:00:31]} Re7 {[%emt 0:00:51]} 46. d6 {[%emt 0:00:22]} Rb7 {[%emt 0:00:30]} 47. Qe6+ {[%emt 0:00:23]} Kh8 {[%emt 0:00:14]} 48. Rh3 {[%emt 0:00:16]} Rb1+ {[%emt 0:00:19]} 49. Bd1+ {[%emt 0:00:09]} Bh6 {[%emt 0:00:13]} 50. Rxh6+ {[%emt 0:00:10]} Kg7 {[%emt 0:00:06]} 51. Qf6+ {[%emt 0:00:05]} 1-0

[Event "FRA-ch Youth U14 2019"]
[Site "Hyeres"]
[Date "2019.04.19"]
[Round "7.4"]
[White "Roux, Baptiste"]
[Black "Emmenecker, Pierre-Antoine"]
[Result "0-1"]
[ECO "C64"]
[WhiteElo "2054"]
[BlackElo "1950"]
[Annotator "NA"]
[PlyCount "126"]
[EventDate "2019.04.14"]
[EventType "swiss"]
[EventCountry "FRA"]
[SourceTitle "playchess.com"]
[Source "ChessBase"]
[SourceQuality "1"]
[TimeControl "5400+30"]

1. e4 {[%emt 0:00:00]} e5 {[%emt 0:00:00]} 2. Nf3 {[%emt 0:00:00]} Nc6 {[%emt 0:00:00]} 3. Bb5 {[%emt 0:00:08]} Bc5 {[%emt 0:00:00]} 4. O-O {[%emt 0:00:40]} Nd4 {[%emt 0:00:00]} 5. Nxd4 {[%emt 0:00:25]} Bxd4 {[%emt 0:00:02]} 6. c3 {[%emt 0:00:21]} Bb6 {[%emt 0:00:16]} 7. d4 {[%emt 0:00:47]} c6 {[%emt 0:00:13]} 8. Ba4 {[%emt 0:00:12]} d6 {[%emt 0:00:16]} 9. Na3 {[%emt 0:01:12]} Nf6 {[%emt 0:00:31]} 10. Nc4 {[%emt 0:02:59]} Nxe4 {[%emt 0:17:06]} 11. dxe5 {[%emt 0:02:12]} Nxf2 {[%emt 0:13:39]} 12. Nxd6+ {[%emt 0:03:18]} Qxd6 {[%emt 0:02:41]} 13. Qxd6 {[%emt 0:00:05]} Ne4+ {[%emt 0:00:12]} 14. Kh1 {[%emt 0:07:18]} Nxd6 {[%emt 0:00:10]} 15. exd6 {[%emt 0:00:07]} Be6 {[%emt 0:06:57]} 16. Bf4 {[%emt 0:04:32]} O-O-O {[%emt 0:03:11]} 17. Bb3 {[%emt 0:03:45]} Bxb3 {[%emt 0:09:17]} 18. axb3 {[%emt 0:00:04]} Rhe8 {[%emt 0:01:23]} 19. Bg3 {[%emt 0:11:03]} f6 {[%emt 0:01:20]} 20. Rfe1 {[%emt 0:01:11]} Kd7 {[%emt 0:01:05]} 21. Reb1 {[%emt 0:42:11]} Re2 {[%emt 0:11:54]} 22. b4 {[%emt 0:00:27]} Rde8 {[%emt 0:03:40]} 23. c4 {[%emt 0:00:43]} Bd4 {[%emt 0:00:44]} 24. c5 {[%emt 0:00:38]} a6 {[%emt 0:00:09]} 25. Rd1 {[%emt 0:06:25]} Bxb2 {[%emt 0:01:14]} 26. Rab1 {[%emt 0:00:07]} Bc3 {[%emt 0:01:41]} 27. Rdc1 {[%emt 0:03:18]} Rb2 {[%emt 0:06:29]} 28. Rxb2 {[%emt 0:00:52]} Bxb2 {[%emt 0:00:07]} 29. Rb1 {[%emt 0:00:34]} Bc3 {[%emt 0:01:15]} 30. Rb3 {[%emt 0:01:42]} Re3 {[%emt 0:02:05]} 31. Kg1 {[%emt 0:00:53]} Bd4 {[%emt 0:01:01]} 32. Rxe3 {[%emt 0:01:21]} Bxe3+ {[%emt 0:00:07]} 33. Kf1 {[%emt 0:00:04]} a5 {[%emt 0:01:20]} 34. Ke2 {[%emt 0:00:40]} Bg1 {[%emt 0:01:43]} 35. Be1 {[%emt 0:02:39]} axb4 {[%emt 0:01:44]} 36. Bxb4 {[%emt 0:00:01]} Bxh2 {[%emt 0:01:43]} 37. Kf1 {[%emt 0:01:03]} b6 {[%emt 0:02:01]} 38. cxb6 {[%emt 0:00:11]} Bxd6 {[%emt 0:00:10]} 39. b7 {[%emt 0:00:11]} Bb8 {[%emt 0:00:23]} 40. g4 {[%emt 0:00:54]} Kc7 {[%emt 0:00:25]} 41. Bf8 {[%emt 0:00:06]} g6 {[%emt 0:00:07]} 42. Be7 {[%emt 0:00:04]} f5 {[%emt 0:00:21]} 43. gxf5 {[%emt 0:00:03]} gxf5 {[%emt 0:00:06]} 44. Ke2 {[%emt 0:00:32]} Kxb7 {[%emt 0:00:14]} 45. Ke3 {[%emt 0:00:36]} Be5 {[%emt 0:00:08]} 46. Kd3 {[%emt 0:00:26]} Kc7 {[%emt 0:00:39]} 47. Bc5 {[%emt 0:00:29]} Kd7 {[%emt 0:00:24]} 48. Ke3 {[%emt 0:01:15]} Ke6 {[%emt 0:00:08]} 49. Kf3 {[%emt 0:00:16]} Kd5 {[%emt 0:00:12]} 50. Be3 {[%emt 0:00:37]} c5 {[%emt 0:00:21]} 51. Bc1 {[%emt 0:00:26]} c4 {[%emt 0:00:48]} 52. Ke3 {[%emt 0:00:17]} Kc5 {[%emt 0:00:38]} 53. Ba3+ {[%emt 0:00:13]} Kb5 {[%emt 0:00:14]} 54. Kd2 {[%emt 0:00:48]} Ka4 {[%emt 0:00:09]} 55. Bc5 {[%emt 0:00:38]} Kb3 {[%emt 0:00:14]} 56. Be3 {[%emt 0:00:15]} c3+ {[%emt 0:00:35]} 57. Kd3 {[%emt 0:00:12]} c2 {[%emt 0:00:16]} 58. Bc1 {[%emt 0:00:18]} Bb2 {[%emt 0:00:16]} 59. Bh6 {[%emt 0:00:56]} c1=Q {[%emt 0:00:16]} 60. Bxc1 {[%emt 0:00:07]} Bxc1 {[%emt 0:00:06]} 61. Kd4 {[%emt 0:00:07]} f4 {[%emt 0:00:10]} 62. Ke4 {[%emt 0:00:15]} Be3 {[%emt 0:00:06]} 63. Kf3 {[%emt 0:00:10]} Kc4 {[%emt 0:00:12]} 0-1

[Event "FRA-ch Youth U14 2019"]
[Site "Hyeres"]
[Date "2019.04.20"]
[Round "8.1"]
[White "Papadiamandis, Elliot"]
[Black "Droin, Augustin"]
[Result "1/2-1/2"]
[ECO "B80"]
[WhiteElo "2157"]
[BlackElo "2088"]
[Annotator "NA"]
[PlyCount "55"]
[EventDate "2019.04.14"]
[EventType "swiss"]
[EventCountry "FRA"]
[SourceTitle "playchess.com"]
[Source "ChessBase"]
[SourceQuality "1"]
[TimeControl "5400+30"]

1. e4 {[%emt 0:00:00]} c5 {[%emt 0:00:00]} 2. Nf3 {[%emt 0:00:13]} Nc6 {[%emt 0:00:00]} 3. d4 {[%emt 0:00:13]} cxd4 {[%emt 0:00:00]} 4. Nxd4 {[%emt 0:00:22]} e6 {[%emt 0:00:05]} 5. Nc3 {[%emt 0:01:04]} d6 {[%emt 0:00:10]} 6. Nxc6 {[%emt 0:11:46]} bxc6 {[%emt 0:00:09]} 7. Bd3 {[%emt 0:01:21]} Be7 {[%emt 0:04:06]} 8. O-O {[%emt 0:01:44]} Nf6 {[%emt 0:00:35]} 9. Qe2 {[%emt 0:02:25]} d5 {[%emt 0:10:49]} 10. Re1 {[%emt 0:08:57]} O-O {[%emt 0:09:04]} 11. exd5 {[%emt 0:08:14]} cxd5 {[%emt 0:00:28]} 12. Bf4 {[%emt 0:01:36]} Bd6 {[%emt 0:07:06]} 13. Qd2 {[%emt 0:06:38]} Rb8 {[%emt 0:03:10]} 14. Nb5 {[%emt 0:03:29]} Bxf4 {[%emt 0:00:20]} 15. Qxf4 {[%emt 0:00:31]} Bd7 {[%emt 0:00:37]} 16. a4 {[%emt 0:01:41]} a6 {[%emt 1:01:21]} 17. Nc7 {[%emt 0:06:49]} Rxb2 {[%emt 0:00:00]} 18. Qd4 {[%emt 0:01:40]} Rb8 {[%emt 0:00:00]} 19. Nxa6 {[%emt 0:02:01]} Ra8 {[%emt 0:00:00]} 20. Nc5 {[%emt 0:04:35]} Qc7 {[%emt 0:00:00]} 21. Nxd7 {[%emt 0:09:16]} Nxd7 {[%emt 0:00:00]} 22. c4 {[%emt 0:00:48]} Qc5 {[%emt 0:00:00]} 23. Qh4 {[%emt 0:00:31]} Nf6 {[%emt 0:00:00]} 24. cxd5 {[%emt 0:00:42]} Qxd5 {[%emt 0:00:00]} 25. Be4 {[%emt 0:01:28]} Nxe4 {[%emt 0:00:00]} 26. Qxe4 {[%emt 0:01:46]} Qa5 {[%emt 0:00:00]} 27. Qe5 {[%emt 0:01:08]} Qa6 {[%emt 0:00:00]} 28. h3 {[%emt 0:04:01]} 1/2-1/2

[Event "FRA-ch Youth U14 2019"]
[Site "Hyeres"]
[Date "2019.04.20"]
[Round "8.2"]
[White "Emmenecker, Pierre-Antoine"]
[Black "Fardet, Elouan"]
[Result "0-1"]
[ECO "B23"]
[WhiteElo "1950"]
[BlackElo "2001"]
[Annotator "NA"]
[PlyCount "74"]
[EventDate "2019.04.14"]
[EventType "swiss"]
[EventCountry "FRA"]
[SourceTitle "playchess.com"]
[Source "ChessBase"]
[SourceQuality "1"]
[TimeControl "5400+30"]

1. e4 {[%emt 0:00:00]} c5 {[%emt 0:00:00]} 2. Nc3 {[%emt 0:00:00]} Nc6 {[%emt 0:00:00]} 3. f4 {[%emt 0:00:00]} g6 {[%emt 0:00:00]} 4. Nf3 {[%emt 0:00:00]} Bg7 {[%emt 0:00:00]} 5. Bb5 {[%emt 0:00:00]} Nd4 {[%emt 0:00:00]} 6. Bd3 {[%emt 0:00:00]} d6 {[%emt 0:00:49]} 7. O-O {[%emt 0:00:58]} Nf6 {[%emt 0:01:31]} 8. Nxd4 {[%emt 0:00:10]} cxd4 {[%emt 0:00:04]} 9. Ne2 {[%emt 0:00:08]} O-O {[%emt 0:01:59]} 10. c3 {[%emt 0:04:58]} e5 {[%emt 0:17:31]} 11. cxd4 {[%emt 0:08:56]} exd4 {[%emt 0:00:04]} 12. Ng3 {[%emt 0:02:50]} h5 {[%emt 0:04:48]} 13. f5 {[%emt 0:10:47]} h4 {[%emt 0:03:10]} 14. Nh1 {[%emt 0:03:49]} Re8 {[%emt 0:08:53]} 15. Qf3 {[%emt 0:11:27]} g5 {[%emt 0:12:03]} 16. Nf2 {[%emt 0:02:18]} Bd7 {[%emt 0:03:00]} 17. b3 {[%emt 0:03:01]} Bc6 {[%emt 0:06:23]} 18. Re1 {[%emt 0:06:46]} Nd7 {[%emt 0:09:50]} 19. Ng4 {[%emt 0:00:53]} Ne5 {[%emt 0:00:26]} 20. Nxe5 {[%emt 0:00:55]} Bxe5 {[%emt 0:00:08]} 21. Bb2 {[%emt 0:02:43]} d5 {[%emt 0:02:26]} 22. Re2 {[%emt 0:09:13]} Qd6 {[%emt 0:02:44]} 23. h3 {[%emt 0:10:16]} dxe4 {[%emt 0:02:38]} 24. Rxe4 {[%emt 0:03:29]} Bxe4 {[%emt 0:00:24]} 25. Bxe4 {[%emt 0:00:07]} d3 {[%emt 0:02:32]} 26. Bxe5 {[%emt 0:00:44]} Rxe5 {[%emt 0:00:24]} 27. Qe3 {[%emt 0:01:05]} Qc5 {[%emt 0:00:47]} 28. Qxc5 {[%emt 0:18:27]} Rxc5 {[%emt 0:00:04]} 29. Bxb7 {[%emt 0:00:00]} Re8 {[%emt 0:00:13]} 30. Ba6 {[%emt 0:00:00]} Rxf5 {[%emt 0:00:38]} 31. Bxd3 {[%emt 0:00:00]} Rd5 {[%emt 0:01:28]} 32. Bc4 {[%emt 0:00:00]} Rxd2 {[%emt 0:00:14]} 33. Rf1 {[%emt 0:00:00]} Re7 {[%emt 0:00:06]} 34. Rf5 {[%emt 0:00:00]} Re1+ {[%emt 0:01:50]} 35. Kh2 {[%emt 0:00:00]} Rdd1 {[%emt 0:00:21]} 36. Rxg5+ {[%emt 0:00:00]} Kf8 {[%emt 0:00:10]} 37. g4 {[%emt 0:00:00]} Rd2+ {[%emt 0:00:05]} 0-1

[Event "FRA-ch Youth U14 2019"]
[Site "Hyeres"]
[Date "2019.04.20"]
[Round "8.3"]
[White "Mathieu, Phileas"]
[Black "Nguyen-Cadoret, Nathan"]
[Result "1-0"]
[ECO "C44"]
[WhiteElo "2105"]
[BlackElo "2211"]
[Annotator "NA"]
[PlyCount "141"]
[EventDate "2019.04.14"]
[EventType "swiss"]
[EventCountry "FRA"]
[SourceTitle "playchess.com"]
[Source "ChessBase"]
[SourceQuality "1"]
[TimeControl "5400+30"]

1. e4 {[%emt 1:30:30]} e5 {[%emt 0:00:15]} 2. Nf3 {[%emt 0:00:00]} Nc6 {[%emt 0:00:06]} 3. c3 {[%emt 0:00:00]} Nf6 {[%emt 0:01:03]} 4. d4 {[%emt 0:00:00]} exd4 {[%emt 0:02:06]} 5. e5 {[%emt 0:00:00]} Nd5 {[%emt 0:00:48]} 6. cxd4 {[%emt 0:00:00]} Bb4+ {[%emt 0:00:48]} 7. Bd2 {[%emt 0:00:00]} Bxd2+ {[%emt 0:03:12]} 8. Nbxd2 {[%emt 0:00:00]} O-O {[%emt 0:02:09]} 9. Bc4 {[%emt 0:00:00]} Nf4 {[%emt 0:08:30]} 10. g3 {[%emt 0:00:00]} Ng6 {[%emt 0:11:00]} 11. O-O {[%emt 0:00:00]} d5 {[%emt 0:08:11]} 12. Bd3 {[%emt 0:00:00]} Bg4 {[%emt 0:17:58]} 13. Qb3 {[%emt 0:00:00]} Rb8 {[%emt 0:03:48]} 14. Rac1 {[%emt 0:00:00]} Nce7 {[%emt 0:07:34]} 15. Rfe1 {[%emt 0:00:00]} c6 {[%emt 0:07:39]} 16. Bf1 {[%emt 0:00:00]} Qd7 {[%emt 0:00:37]} 17. Qc3 {[%emt 0:00:00]} Rfc8 {[%emt 0:02:30]} 18. b4 {[%emt 0:00:00]} Qf5 {[%emt 0:03:45]} 19. Qe3 {[%emt 0:00:00]} h6 {[%emt 0:01:15]} 20. Bg2 {[%emt 0:00:00]} Qh5 {[%emt 0:01:19]} 21. a4 {[%emt 0:00:00]} Nf5 {[%emt 0:07:06]} 22. Qd3 {[%emt 0:00:00]} Nf8 {[%emt 0:00:42]} 23. Nb3 {[%emt 0:00:00]} Ne6 {[%emt 0:00:22]} 24. h4 {[%emt 0:00:00]} Qg6 {[%emt 0:00:28]} 25. Red1 {[%emt 0:00:00]} Re8 {[%emt 0:03:15]} 26. Rd2 {[%emt 0:00:00]} Re7 {[%emt 0:00:53]} 27. Nh2 {[%emt 0:00:04]} Bh5 {[%emt 0:01:22]} 28. Bh3 {[%emt 0:01:52]} Nxh4 {[%emt 0:04:43]} 29. Qxg6 {[%emt 0:00:17]} Nxg6 {[%emt 0:00:11]} 30. Bxe6 {[%emt 0:00:08]} Rxe6 {[%emt 0:00:43]} 31. g4 {[%emt 0:00:10]} Bxg4 {[%emt 0:00:15]} 32. Nxg4 {[%emt 0:00:01]} Nh4 {[%emt 0:00:14]} 33. Nh2 {[%emt 0:01:31]} Rg6+ {[%emt 0:00:12]} 34. Kh1 {[%emt 0:01:49]} Rg5 {[%emt 0:00:21]} 35. Rg1 {[%emt 0:00:33]} Rh5 {[%emt 0:00:15]} 36. Rd3 {[%emt 0:00:54]} Rf5 {[%emt 0:00:43]} 37. Rh3 {[%emt 0:00:36]} Ng6 {[%emt 0:00:06]} 38. Rf3 {[%emt 0:00:08]} Nh4 {[%emt 0:00:18]} 39. Rxf5 {[%emt 0:01:09]} Nxf5 {[%emt 0:00:02]} 40. Ng4 {[%emt 0:00:29]} Kh7 {[%emt 0:00:08]} 41. Ne3 {[%emt 0:00:04]} Nh4 {[%emt 0:00:34]} 42. Rg4 {[%emt 0:01:21]} Nf3 {[%emt 0:00:07]} 43. Rg3 {[%emt 0:00:53]} Ng5 {[%emt 0:00:33]} 44. Rg1 {[%emt 0:01:16]} Ne4 {[%emt 0:00:05]} 45. Kg2 {[%emt 0:01:17]} Nc3 {[%emt 0:00:01]} 46. Ra1 {[%emt 0:00:41]} Re8 {[%emt 0:00:11]} 47. Nc5 {[%emt 0:01:59]} b6 {[%emt 0:00:05]} 48. Nd3 {[%emt 0:00:49]} Ne2 {[%emt 0:00:42]} 49. Nc2 {[%emt 0:00:49]} Re6 {[%emt 0:00:10]} 50. Kf3 {[%emt 0:00:39]} Nc3 {[%emt 0:00:04]} 51. Nf4 {[%emt 0:01:19]} Re7 {[%emt 0:00:12]} 52. a5 {[%emt 0:02:00]} c5 {[%emt 0:01:01]} 53. bxc5 {[%emt 0:01:23]} bxc5 {[%emt 0:00:07]} 54. dxc5 {[%emt 0:00:47]} Rxe5 {[%emt 0:00:16]} 55. c6 {[%emt 0:00:57]} Nb5 {[%emt 0:00:20]} 56. Rd1 {[%emt 0:00:33]} Nc7 {[%emt 0:00:34]} 57. Nb4 {[%emt 0:00:24]} d4 {[%emt 0:00:34]} 58. Rxd4 {[%emt 0:00:06]} Rxa5 {[%emt 0:00:04]} 59. Rd7 {[%emt 0:00:54]} Ra3+ {[%emt 0:00:06]} 60. Kg2 {[%emt 0:00:30]} Nb5 {[%emt 0:00:19]} 61. c7 {[%emt 0:00:44]} Rc3 {[%emt 0:00:12]} 62. Nfd5 {[%emt 0:00:20]} Rc4 {[%emt 0:01:03]} 63. Na6 {[%emt 0:00:39]} Nxc7 {[%emt 0:00:05]} 64. Ndxc7 {[%emt 0:00:39]} Kg6 {[%emt 0:00:12]} 65. Nd5 {[%emt 0:00:22]} Ra4 {[%emt 0:00:16]} 66. Ndb4 {[%emt 0:00:22]} f5 {[%emt 0:00:05]} 67. Rxa7 {[%emt 0:00:16]} Kf6 {[%emt 0:00:08]} 68. Rb7 {[%emt 0:00:45]} g5 {[%emt 0:00:05]} 69. Rb6+ {[%emt 0:00:03]} Kg7 {[%emt 0:00:05]} 70. Nc5 {[%emt 0:00:14]} Ra3 {[%emt 0:00:07]} 71. Ne6+ {[%emt 0:00:13]} 1-0